{"text_format":"1","workbook":"xlsx","n_sheets":1,"sheets":["DEFTERTUTMAUSULTESPİT"],"not_rendered":{"charts":0,"images":0,"macros":0,"external_links":0,"defined_names":3,"comments":0,"pivot_tables":0},"unopened":[],"bounds":{"document_bytes":16777216,"sheet_cells":100000,"rows_first":2000,"rows_last":500,"rows_between":2000,"halvings":0,"cell_chars":16384,"cell_head_chars":4096},"cells_cut":0,"cells_raw":0,"read":"whole","date_system":"1900"}

{"sheet":"DEFTERTUTMAUSULTESPİT","index":0,"n_rows":29,"n_cols":25,"rows_kept":29,"cut":false,"hidden":false,"merged":[[3,3,3,6],[4,9,6,11],[4,16,4,18],[4,19,4,21],[4,22,4,24],[5,16,5,18],[5,19,5,21],[5,22,5,24],[9,24,10,24],[12,22,13,22],[7,9,8,9],[7,10,8,10],[9,9,10,9],[9,10,10,10],[9,11,10,11],[9,20,10,20],[9,12,10,12],[9,21,10,21],[9,22,10,22],[9,23,10,23],[9,14,10,14],[9,16,10,16],[9,17,10,17],[9,18,10,18],[9,19,10,19],[21,23,22,24],[23,2,25,2],[26,2,28,2],[16,10,18,24],[17,2,19,2],[19,8,22,9],[19,10,20,11],[19,16,20,22],[19,23,20,24],[20,2,22,2],[21,10,22,11],[21,12,22,12],[21,16,22,22],[11,2,16,2],[15,10,15,24]]}
[]
[]
[]
[null,null,"II.SINIF TÜCCAR (İŞLETME HESABI ESASI)","2026 YILINDA TUTULMASI GEREKEN DEFTER TÜRÜNÜN TESPİTİ İÇİN "]
[null,null,"I.SINIF TÜCCAR (BİLANÇO ESASI)",null,null,null,null,null,null,"HESAPLAMALARDA DİKKATE ALINAN HADLER",null,null,null,null,null,null,"556 SN VUK GT",null,null,"577 SN VUK GT",null,null,"588 SN VUK GT"]
[null,null,null,null,null,null,null,null,null,null,null,null,"504 SN VUK GT",null,"522 SN VUK GT",null,"2024 YILI DEFTER USULÜ İÇİN 2023 YILI SONUNDA YAYINLANAN TUTARLAR. 2023 YILI SONU İŞLETME RAKAMLARI DİKKATE ALINACAKTIR.",null,null,"2025 YILI DEFTER USULÜ İÇİN 2024 YILI SONUNDA YAYINLANAN  TUTARLAR. 2024 YILI SONU İŞLETME RAKAMLARI DİKKATE ALINACAKTIR.",null,null,"2026 YILI DEFTER USULÜ İÇİN 2025 YILI SONUNDA YAYINLANMASI BEKLENEN TAHMİNİ TUTARLAR. 2025 YILI SONU İŞLETME RAKAMLARI DİKKATE ALINACAKTIR."]
[null,null,null,"1-    MEVCUT DEFTER TUTMA USULÜNÜZÜ SEÇİNİZ",null,null,null,null,null,null,null,null,"2019 YILI DEFTER USULÜ İÇİN 2018 YILI TUTARLARI",null,"2020 YILI DEFTER USULÜ İÇİN 2019 YILI TUTARLARI",null,"HADLER","%20 Fazlası","%20 Eksiği","HADLER","%20 Fazlası","%20 Eksiği","HADLER","%20 Fazlası","%20 Eksiği"]
[null,null,null,"II.SINIF TÜCCAR (İŞLETME HESABI ESASI)",{"$f":"IF(D8=C4,1,IF(D8=C5,2,))","v":1},null,null,null,null,1,"Satın aldıkları malları olduğu gibi veya işledikten sonra satanlar \n(SADECE MAL ALIM SATIMI)","Yıllık Alış Tutarı",230000,null,280000,null,1400000,{"$f":"Q8*1.2","v":1680000},{"$f":"Q8*0.8","v":1120000},2000000,{"$f":"T8*1.2","v":2400000},{"$f":"T8*0.8","v":1600000},2500000,{"$f":"W8*1.2","v":3000000},{"$f":"W8*0.8","v":2000000}]
[null,null,null,"2-    FAALİYETİNİZİN TÜRÜNÜ SEÇİNİZ",null,null,null,null,null,null,null,"Yıllık Satış Tutarı",320000,null,390000,null,2000000,{"$f":"Q9*1.2","v":2400000},{"$f":"Q9*0.8","v":1600000},2800000,{"$f":"T9*1.2","v":3360000},{"$f":"T9*0.8","v":2240000},3500000,{"$f":"W9*1.2","v":4200000},{"$f":"W9*0.8","v":2800000}]
[null,null,null,"Satın aldıkları malları olduğu gibi veya işledikten sonra satanlar \n(SADECE MAL ALIM SATIMI)",{"$f":"IF(D10=K8,1,IF(D10=K10,2,IF(D10=K12,3)))","v":1},null,null,null,null,2,"Mal alım satımı dışındaki işlerle uğraşanlar \n(SADECE HİZMET İŞİ )","Yıllık Gayri Safi (Brüt) İş Hasılatı",120000,null,140000,null,690000,{"$f":"Q10*1.2","v":828000},{"$f":"Q10*0.8","v":552000},990000,{"$f":"T10*1.2","v":1188000},{"$f":"T10*0.8","v":792000},1200000,{"$f":"W10*1.2","v":1440000},{"$f":"W10*0.8","v":960000}]
[null,null,null,null,null,null,null,null,null,null,null,null,null,null,null,null,null,{"$f":"Q11*1.2","v":0},null,null,{"$f":"T11*1.2","v":0}]
[null,null,"VERİ GİRİŞİ YAPILMASI GEREKEN HÜCRELERE MUTLAKA RAKAM GİRİNİZ. SIFIR OLAN DEĞERLER İÇİN 1 RAKAMINI GİRİNİZ.","3-     BU TABLODA SARI RENKLİ OLARAK BELİRTİLEN HÜCRELERE AİT TUTARLARI GİRİNİZ. TUTARI SIFIRDAN BÜYÜK YAZINIZ. TUTARIN SIFIR OLDUĞU DEĞERLENDİRİLDİĞİNDE \"1\" OLARAK RAKAMIN GİRİLMESİ GEREKMEKTEDİR. ","2023 YILI RAKAMLARINIZI GİRİNİZ","2024 YILI RAKAMLARINIZI GİRİNİZ","2025 YILI RAKAMLARINIZI GİRİNİZ",null,null,3,"Mal alım satımı ve hizmet işini birlikte yürütenler \n(MAL ALIM SATIMI VE HİZMET BİRLİKTE)","İş Hasılatının (hizmet) 5 katı ile yıllık satış tutarının (mal) toplamı",230000,null,280000,null,1400000,{"$f":"Q12*1.2","v":1680000},{"$f":"Q12*0.8","v":1120000},2000000,{"$f":"T12*1.2","v":2400000},{"$f":"T12*0.8","v":1600000},{"$f":"T12*1.25","v":2500000},{"$f":"W12*1.2","v":3000000},{"$f":"W12*0.8","v":2000000}]
[null,null,null,{"$f":"IF(D10=\"Satın aldıkları malları olduğu gibi veya işledikten sonra satanlar \n(SADECE MAL ALIM SATIMI)\",\"YILLIK ALIŞ TUTARI (A)\", \"…....\")","v":"YILLIK ALIŞ TUTARI (A)"}]
[null,null,null,{"$f":"IF(OR(D10=\"Satın aldıkları malları olduğu gibi veya işledikten sonra satanlar \n(SADECE MAL ALIM SATIMI)\",D10=\"Mal alım satımı ve hizmet işini birlikte yürütenler \n(MAL ALIM SATIMI VE HİZMET BİRLİKTE)\"),\"YILLIK SATIŞ TUTARI (B)\", \"…....\")","v":"YILLIK SATIŞ TUTARI (B)"}]
[null,null,null,{"$f":"IF(D10=\"Mal alım satımı dışındaki işlerle uğraşanlar \n(SADECE HİZMET İŞİ )\",\"YILLIK GAYRİSAFİ İŞ HASILATI (SADECE HİZMET) (C)\", \"……..\")","v":"…….."},null,null,null,null,null,null,"NOTLAR: "]
[null,null,null,{"$f":"IF( D10=\"Mal alım satımı ve hizmet işini birlikte yürütenler \n(MAL ALIM SATIMI VE HİZMET BİRLİKTE)\",\"YILLIK GAYRİSAFİ İŞ HASILATI (HİZMET İLE BİRLİKTE MAL ALIM SATIMI) (D)\",\"……..\")","v":"…….."},null,null,null,null,null,null,"1, 2 VE 3 NOLU TALİMATLARA GÖRE SEÇİMLERİ VE 3 NOLU TABLODA SADECE SARI RENKLİ HÜCRELERE TUTAR BİLGİLERİNİ GİRMENİZ GEREKMEKTEDİR. 3 NOLU TABLODA SARI RENKLİ HÜCRELER DIŞINDAKİ VERİLERİN SİLİNMESİ GEREKMEKTEDİR.  "]
[null,null,null,{"$f":"IF(D10=\"Mal alım satımı ve hizmet işini birlikte yürütenler \n(MAL ALIM SATIMI VE HİZMET BİRLİKTE)\",\"MAL ALIM SATIMI İLE HİZMET İŞLERİNİN BİRLİKTE YAPILMASI DURUMUNDA MAL SATIŞ TUTARI İLE YILLIK GAYRİ SAFİ İŞ HASILATININ 5 KATININ TOPLAM TUTARI  (B+5xD)\", \".........\")","v":"........."},{"$f":"IF(D10=\"Mal alım satımı ve hizmet işini birlikte yürütenler \n(MAL ALIM SATIMI VE HİZMET BİRLİKTE)\",(E16*5)+E14,0)","v":0},{"$f":"IF(D10=\"Mal alım satımı ve hizmet işini birlikte yürütenler \n(MAL ALIM SATIMI VE HİZMET BİRLİKTE)\",(F16*5)+F14,0)","v":0},{"$f":"IF(D10=\"Mal alım satımı ve hizmet işini birlikte yürütenler \n(MAL ALIM SATIMI VE HİZMET BİRLİKTE)\",(G16*5)+G14,0)","v":0},null,null,null,"SONUÇ TABLOLARI OTOMATİK OLARAK OLUŞMAKTADIR.   \n\nHALİ HAZIRDA II. SINIFTA OLAN TACİRİN DURUMU AŞAĞIDAKİ SONUÇ-1 TABLOSUNDA GÖSTERİLMEKTE, \nHALİ HAZIRDA BİLANÇO ESASINDA OLAN MÜKELLEFİN SONUÇ DURUMU İSE AŞAĞIDAKİ SONUÇ-2 TABLOSUNDA GÖSTERİLMEKTEDİR. "]
[null,null,"BİLANÇODAN İŞLETME HESABI ESASINA GEÇİŞTE ÜST ÜSTE 3 YIL % 20 YE KADAR AZALIŞ OLUP OLMADIĞININ KONTROLÜ ","YILLIK ALIŞ VEYA SATIŞ TUTARIN % 20 YE KADAR AZALIŞ GÖSTERİP GÖSTERMEDİĞİNİN KONTROLÜ \n1=EVET, 0=HAYIR",{"$f":"IF(AND(OR(OR(AND($E$13<$Q$8,$E$13>=$S$8),E13<=S8),OR(AND($E$14<$Q$9,$E$14>=$S$9),E14<=S9)),E13>0,E14>0),1,0)","v":0},{"$f":"IF(AND(OR(OR(AND($F$13<$T$8,$F$13>=$V$8),F13<=V8),OR(AND($F$14<$T$9,$F$14>=$V$9),F14<=V9)),F13>0,F14>0),1,0)","v":0},{"$f":"IF(AND(OR(OR(AND($G$13<$W$8,$G$13>=$Y$8),G13<=Y8),OR(AND($G$14<$W$9,$G$14>=$Y$9),G14<=Y9)),G13>0,G14>0),1,0)","v":0},{"$f":"E18+F18+G18","v":0}]
[null,null,null,"YILLIK GAYRİSAFİ İŞ HASILATI TUTARININ % 20 YE KADAR AZALIŞ GÖSTERİP GÖSTERMEDİĞİNİN KONTROLÜ 1=EVET, 0=HAYIR",{"$f":"IF(AND(OR(AND(E15<Q10,E15>=S10),AND(E15>=0,E15<=S10))*F15>0),1,0)","v":0},{"$f":"IF(AND(OR(AND(F15<T10,F15>=V10),AND(F15>=0,F15<=V10)),G15>0),1,0)","v":0},{"$f":"IF(AND(OR(AND(G15<W10,G15>=Y10),AND(G15>=0,G15<=Y10)),G15>0),1,0)","v":0},{"$f":"E19+F19+G19","v":0}]
[null,null,null,"MAL SATIŞ TUTARI İLE YILLIK GAYRİ SAFİ İŞ HASILATININ 5 KATININ TOPLAM TUTARININ % 20 YE KADAR FAZLALIK GÖSTERİP GÖSTERMEDİĞİNİN KONTROLÜ 1=EVET, 0=HAYIR",{"$f":"IF(AND(OR(AND($E$17<$Q$12,$E$17>=$S$12),E17<=S12)*E17>0),1,0)","v":0},{"$f":"IF(AND(OR(AND($F$17<$T$12,$F$17>=$V$12),F17<=V12)*F17>0),1,0)","v":0},{"$f":"IF(AND(OR(AND($G$17<$W$12,$G$17>=$Y$12),G17<=Y12),G17>0),1,0)","v":0},{"$f":"E20+F20+G20","v":0},"4- SONUÇLAR",null,"İKİNCİ SINIFTAN BİRİNCİ SINIFA GEÇİŞ DURUMU",null,null,null,null,null,{"$f":"IF($E$8=2,\".....................................................\",IF(AND($E$8=1,$E$10=1,$H$21=2),\"BİLANÇO ESASINA GÖRE DEFTER TUTULMASI GEREKİR\",\n   IF(AND($E$8=1,$E$10=2,$H$22=2),\"BİLANÇO ESASINA GÖRE DEFTER TUTULMASI GEREKİR\",\n   IF(AND($E$8=1,$E$10=3,$H$23=2),\"BİLANÇO ESASINA GÖRE DEFTER TUTULMASI GEREKİR\",\n   IF(AND($E$8=1,$E$10=1,$H$24>0),\"BİLANÇO ESASINA GÖRE DEFTER TUTULMASI GEREKİR\",\n   IF(AND($E$8=1,$E$10=2,$H$25>0),\"BİLANÇO ESASINA GÖRE DEFTER TUTULMASI GEREKİR\",\n   IF(AND($E$8=1,$E$10=3,$H$26>0),\"BİLANÇO ESASINA GÖRE DEFTER TUTULMASI GEREKİR\",\n   \"İŞLETME HESABI ESASINDA DEFTER TUTMAYA DEVAM OLUNABİLİR\")))))))","v":"İŞLETME HESABI ESASINDA DEFTER TUTMAYA DEVAM OLUNABİLİR"},null,null,null,null,null,null,"SONUÇ-1"]
[null,null,"İŞLETMEDEN BİLANÇOYA GEÇİŞ KONTROLÜNDE; ÜST ÜSTE 2 YIL % 20 YE KADAR ARTIŞ OLUP OLMADIĞININ KONTROLÜ","YILLIK ALIŞ VEYA SATIŞ TUTARIN % 20 YE KADAR FAZLALIK GÖSTERİP GÖSTEMEDİĞİNİN \nKONTROLÜ 1=EVET, 0=HAYIR",null,{"$f":"IF(AND(OR(AND(F13>0,$F$13>$T$8,$F$13<=$U$8),AND(F14>0,$F$14>$T$9,$F$14<=$U$9),F13>=U8,F14>=U9)),1,0)","v":0},{"$f":"IF(AND(OR(AND(G13>0,$G$13>$W$8,$G$13<=$X$8),AND(G14>0,$G$14>$W$9,$G$14<=$X$9),G13>=X8,G14>=X9)),1,0)","v":0},0]
[null,null,null,"YILLIK GAYRİSAFİ İŞ HASILATI TUTARININ % 20 YE KADAR FAZLALIK GÖSTERİP GÖSTERMEDİĞİNİN KONTROLÜ 1=EVET, 0=HAYIR",null,{"$f":"IF(OR(AND($F$15>$T$10,$F$15<=$U$10),F15>=U10),1,0)","v":0},{"$f":"IF(OR( AND($G$15>$W$10,$G$15<=$X$10), G15>=X10),1,0)","v":0},0,null,null,"BİRİNCİ SINIFTAN İKİNCİ SINIFA GEÇİŞ DURUMU",null,"SONUÇ-2",null,null,null,{"$f":"IF($E$8=1,\"...............................................................\",\nIF(AND($E$8=2,$E$10=1,$H$18=3),\"İŞLETME HESABI ESASINA GÖRE DEFTER TUTULABİLİR\",\nIF(AND($E$8=2,$E$10=2,$H$19=3),\"İŞLETME HESABI ESASINA GÖRE DEFTER TUTULABİLİR\",\nIF(AND($E$8=2,$E$10=3,$H$20=3),\"İŞLETME HESABI ESASINA GÖRE DEFTER TUTULABİLİR\",\nIF(AND($E$8=2,$E$10=1,$H$27>0),\"İŞLETME HESABI ESASINA GÖRE DEFTER TUTULABİLİR\",\nIF(AND($E$8=2,$E$10=2,$H$28>0),\"İŞLETME HESABI ESASINA GÖRE DEFTER TUTULABİLİR\",\nIF(AND($E$8=2,$E$10=3,$H$29>0),\"İŞLETME HESABI ESASINA GÖRE DEFTER TUTULABİLİR\",\n\"BİLANÇO USULÜNDE DEFTER TUTULMAYA DEVAM EDİLMESİ GEREKİR\")))))))","v":"..............................................................."},null,null,null,null,null,null,"SONUÇ-2"]
[null,null,null,"MAL SATIŞ TUTARI İLE YILLIK GAYRİ SAFİ İŞ HASILATININ 5 KATININ TOPLAM TUTARININ % 20 YE KADAR FAZLALIK GÖSTERİP GÖSTERMEDİĞİNİN KONTROLÜ 1=EVET, 0=HAYIR",null,{"$f":"IF(OR(AND($F$17>$T$12,$F$17<=$U$12,$F$14>0,$F$16>0),F17>=U12),1,0)","v":0},{"$f":"IF(OR(AND($G$17>$W$12,$G$17<=$X$12,$G$14>0,$G$16>0),G17>=X12),1,0)","v":0},0]
[null,null,"İŞLETMEDEN BİLANÇOYA GEÇİŞ KONTROLÜNDE; SON YILDA  % 20 DEN FAZLA ARTIŞ OLUP OLMADIĞININ KONTROLÜ","YILLIK ALIŞ VEYA SATIŞ TUTARIN % 20 DEN FAZLA ARTIŞ GÖSTERİP GÖSTEMEDİĞİNİN KONTROLÜ \n1=EVET, 0=HAYIR",null,null,{"$f":"IF(AND(OR($G$13>$X$8,$G$14>$X$9),$G$13>0,$G$14>0),1,0)","v":0},{"$f":"F24+G24","v":0}]
[null,null,null,"YILLIK GAYRİSAFİ İŞ HASILATI TUTARININ % 20 DEN FAZLA ARTIŞ \nGÖSTERİP GÖSTERMEDİĞİNİN KONTROLÜ 1=EVET, 0=HAYIR",null,null,{"$f":"IF(AND($G$15>$X$10,$G$15>0),1,0)","v":0},{"$f":"F25+G25","v":0}]
[null,null,null,"MAL SATIŞ TUTARI İLE YILLIK GAYRİ SAFİ İŞ HASILATININ 5 KATININ TOPLAM TUTARININ % 20 DEN FAZLA ARTIŞ GÖSTERİP GÖSTERMEDİĞİNİN KONTROLÜ 1=EVET, 0=HAYIR",null,null,{"$f":"IF(AND($G$17>$X$12,$G$17>0),1,0)","v":0},0]
[null,null,"BİLANÇODAN İŞLETME HESABI ESASINA GEÇİŞTE SON YILDA % 20 DEN FAZLA AZALIŞ OLUP OLMADIĞININ KONTROLÜ ","YILLIK ALIŞ VEYA SATIŞ TUTARIN SON YILDA % 20 DEN FAZLA AZALIŞ GÖSTERİP GÖSTERMEDİĞİNİN KONTROLÜ  1=EVET, 0=HAYIR",null,null,{"$f":"IF(AND(OR($G$13<$Y$8,$G$14<$Y$9),AND($G$13>0,$G$14>0)),1,0)","v":0},{"$f":"E27+F27+G27","v":0}]
[null,null,null,"YILLIK GAYRİSAFİ İŞ HASILATI TUTARININ SON YILDA % 20 DEN FAZLA AZALIŞ GÖSTERİP GÖSTERMEDİĞİNİN KONTROLÜ  1=EVET, 0=HAYIR",null,null,{"$f":"IF(AND($G$15<$Y$10,$G$15>0),1,0)","v":0},{"$f":"E28+F28+G28","v":0}]
[null,null,null,"MAL SATIŞ TUTARI İLE YILLIK GAYRİ SAFİ İŞ HASILATININ 5 KATININ TOPLAM TUTARININ SON YILDA % 20 DEN FAZLA AZALIŞ GÖSTERİP GÖSTERMEDİĞİNİN KONTROLÜ 1=EVET, 0=HAYIR",null,null,{"$f":"IF(AND($G$17<$Y$12,$G$14>0,$G$16>0,$G$17>0),1,0)","v":0},0]